fUSD/lending_fUSD_20240615
["ID","MTS","AMOUNT","RATE_DAILY","PERIOD"]
[329575063,1718451165330,-740.24,0.00025205,3]
[329575064,1718451165353,-960.17,0.00025205,3]
[329575065,1718451165377,-500.0,0.00025205,3]
[329575066,1718451165401,-653.19,0.00025205,3]
[329575067,1718451165420,-582.42,0.00025205,3]
[329575068,1718451165472,-500.0,0.00025205,3]
[329575069,1718451165487,-500.0,0.00025205,3]
[329575070,1718451165520,-500.0,0.00025205,3]
[329575071,1718451165538,-638.94,0.00025205,3]
[329575072,1718451165551,-500.0,0.00025205,3]
[329575073,1718451165569,-1207.64,0.00025205,3]
[329575074,1718451165586,-1000.0,0.00025205,2]
[329575075,1718451165601,-716.09055291,0.00025211,2]
[329575076,1718451165633,-286.63919872,0.00025215,2]
[329575077,1718451165648,-782.54731293,0.00025217,2]
[329575078,1718451165659,-160.17050623,0.0002522,2]
[329575079,1718451165673,-2000.0,0.0002525,2]
[329575080,1718451165694,-200.0,0.0002525,2]
[329575081,1718451165727,-200.0,0.0002525,2]
[329575082,1718451165755,-152.63377509,0.00025254,2]
[329575083,1718451165790,-167.23501912,0.00025291,2]
[329575084,1718451165816,-515.52255554,0.00025294,2]
[329575085,1718451165831,-1444.2920702,0.00025294,2]
[329575086,1718451165842,-156.25014261,0.00025311,2]
[329575087,1718451165855,-181.0662753,0.00025333,2]
[329575088,1718451165881,-504.02087361,0.00025355,2]
[329575089,1718451165912,-286.63919872,0.00025367,2]
[329575090,1718451165960,-156.25014261,0.00025374,2]
[329575091,1718451165978,-221.0,0.0002538,15]
[329575092,1718451165999,-1444.2920702,0.00025389,2]
[329575093,1718451166011,-221.0,0.0002539,15]
[329575094,1718451166028,-181.843116,0.00025391,2]
[329575095,1718451166042,-172.114939,0.00025391,2]
[329575096,1718451166070,-1683.57,0.000254,2]
[329575097,1718451166088,-504.02087361,0.00025403,2]
[329575098,1718451166110,-716.09055291,0.00025408,2]
[329575099,1718451166128,-249.44162897,0.00025423,2]
[329575100,1718451166141,-150.0,0.00025425,2]
[329575101,1718451166153,-156.06221883,0.00025427,2]
[329575102,1718451166183,-152.63377509,0.00025436,2]
[329575103,1718451166263,-151.0,0.00025444,4]
[329575104,1718451166287,-150.0,0.0002545,2]
[329575105,1718451166302,-716.09055291,0.00025456,2]
[329575106,1718451166372,-153.72328539,0.00025459,2]
[329575107,1718451166423,-156.06221883,0.00025466,2]
[329575108,1718451166451,-156.06221883,0.00025467,2]
[329575109,1718451166467,-153.1,0.00025478,4]
[329575110,1718451166507,-500.0,0.00025479,3]
[329575111,1718451166541,-522.01,0.00025479,3]
[329575112,1718451166555,-500.0,0.00025479,3]
[329575113,1718451166572,-500.0,0.00025479,3]
[329575114,1718451166600,-500.0,0.00025479,3]
[329575115,1718451166625,-500.12,0.00025479,3]
[329575116,1718451166660,-500.0,0.00025479,3]
[329575117,1718451166675,-617.41,0.00025479,3]
[329575118,1718451166700,-646.34874939,0.00025479,3]
[329575119,1718451166733,-500.0,0.00025479,3]
[329575120,1718451166744,-500.0,0.00025479,3]
[329575121,1718451166762,-500.0,0.00025479,3]
[329575122,1718451166783,-500.0,0.00025479,3]
[329575123,1718451166808,-500.0,0.00025479,3]
[329575124,1718451166821,-500.0,0.00025479,3]
[329575125,1718451166856,-500.0,0.00025479,3]
[329575126,1718451166868,-500.0,0.00025479,3]
[329575127,1718451166886,-453.72489329,0.00025479,3]
[329575128,1718451166901,-500.0,0.00025479,3]
[329575129,1718451166913,-308.75889281,0.00025479,3]
[329575130,1718451166944,-500.0,0.00025479,3]
[329575131,1718451166969,-593.7,0.00025479,3]
[329575132,1718451167008,-924.58,0.00025479,3]
[329575133,1718451167033,-723.95,0.00025479,3]
[329575134,1718451167061,-672.34,0.00025479,3]
[329575135,1718451167078,-500.0,0.00025479,3]
[329575136,1718451167105,-525.61,0.00025479,3]
[329575137,1718451167125,-500.0,0.00025479,3]
[329575138,1718451167153,-500.0,0.00025479,3]
[329575139,1718451167171,-500.0,0.00025479,3]
[329575140,1718451167204,-500.0,0.00025479,3]
[329575141,1718451167241,-665.35,0.00025479,3]
[329575142,1718451167258,-500.0,0.00025479,3]
[329575143,1718451167281,-500.0,0.00025479,3]
[329575144,1718451167311,-500.0,0.00025479,3]
[329575145,1718451167324,-573.27,0.00025479,3]
[329575146,1718451167377,-500.0,0.00025479,3]
[329575147,1718451167390,-500.0,0.00025479,3]
[329575148,1718451167403,-500.0,0.00025479,3]
[329575149,1718451167421,-535.22,0.00025479,3]
[329575150,1718451167436,-500.0,0.00025479,3]
[329575151,1718451167462,-653.69,0.00025479,3]
[329575152,1718451167477,-717.74,0.00025479,3]
[329575153,1718451167492,-500.0,0.00025479,3]
[329575154,1718451167532,-583.01,0.00025479,3]
[329575155,1718451167555,-697.17,0.00025479,3]
[329575156,1718451167578,-611.55,0.00025479,3]
[329575157,1718451167596,-500.0,0.00025479,3]
[329575158,1718451167610,-689.83,0.00025479,3]
[329575159,1718451167639,-485.79881478,0.00025479,3]
[329575160,1718451167651,-641.7,0.00025479,3]
[329575161,1718451167677,-893.27,0.00025479,3]
[329575162,1718451167714,-538.02,0.00025479,3]
[329575163,1718451167804,-572.18,0.00025479,3]
[329575164,1718451167817,-561.19,0.00025479,3]
[329575165,1718451167856,-500.0,0.00025479,3]
[329575166,1718451167900,-500.0,0.00025479,3]
[329575167,1718451167938,-519.33,0.00025479,3]
[329575168,1718451167962,-500.0,0.00025479,3]
[329575169,1718451167977,-624.2,0.00025479,3]
[329575170,1718451168002,-483.8710612,0.00025479,3]
[329575171,1718451168026,-222.14364099,0.00025479,3]
[329575172,1718451168041,-579.75,0.00025479,3]
[329575173,1718451168070,-575.46,0.00025479,3]
[329575174,1718451168091,-500.0,0.00025479,3]
[329575175,1718451168110,-500.0,0.00025479,3]
[329575176,1718451168156,-500.0,0.00025479,3]
[329575177,1718451168188,-532.67,0.00025479,3]
[329575178,1718451168207,-500.0,0.00025479,3]
[329575179,1718451168222,-173.61,0.00025479,3]
[329575180,1718451168239,-500.0,0.00025479,3]
[329575181,1718451168252,-304.46524816,0.00025479,3]
[329575182,1718451168284,-500.0,0.00025479,3]
[329575183,1718451168345,-687.46,0.00025479,3]
[329575184,1718451168386,-1092.86,0.00025479,3]
[329575185,1718451168440,-524.53,0.00025479,3]
[329575186,1718451168453,-500.0,0.00025479,3]
[329575187,1718451168485,-1502.19,0.00025479,3]
[329575188,1718451168512,-500.0,0.00025479,3]
[329575189,1718451168527,-500.0,0.00025479,3]
[329575190,1718451168540,-500.0,0.00025479,3]
[329575191,1718451168604,-500.0,0.00025479,3]
[329575192,1718451168627,-500.0,0.00025479,3]
[329575193,1718451168666,-500.0,0.00025479,3]
[329575194,1718451168684,-612.77,0.00025479,3]
[329575195,1718451168696,-500.0,0.00025479,3]
[329575196,1718451168729,-500.0,0.00025479,3]
[329575197,1718451168742,-500.0,0.00025479,3]
[329575198,1718451168786,-546.66,0.00025479,3]
[329575199,1718451168806,-500.0,0.00025479,3]
[329575200,1718451168827,-915.8,0.00025479,3]
[329575201,1718451168838,-500.0,0.00025479,3]
[329575202,1718451168864,-553.21,0.00025479,3]
[329575203,1718451168892,-500.0,0.00025479,3]
[329575204,1718451168905,-1033.63,0.00025479,3]
[329575205,1718451168927,-500.0,0.00025479,3]
[329575206,1718451168948,-2515.97,0.00025479,3]
[329575207,1718451168981,-605.24,0.00025479,3]
[329575208,1718451169002,-500.0,0.00025479,3]
[329575209,1718451169018,-500.0,0.00025479,3]
[329575210,1718451169031,-261.96655994,0.00025479,3]
[329575211,1718451169048,-500.0,0.00025479,3]
[329575212,1718451169065,-500.0,0.00025479,3]
[329575213,1718451169077,-500.0,0.00025479,3]
[329575214,1718451169090,-500.0,0.00025479,3]
[329575215,1718451169105,-500.0,0.00025479,3]
[329575216,1718451169122,-1014.91,0.00025479,3]
[329575217,1718451169137,-517.68,0.00025479,3]
[329575218,1718451169151,-574.11,0.00025479,3]
[329575219,1718451169188,-500.0,0.00025479,3]
[329575220,1718451169206,-500.0,0.00025479,3]
[329575221,1718451169219,-500.0,0.00025479,3]
[329575222,1718451169395,-1028.74,0.00025479,3]
[329575223,1718451169412,-500.0,0.00025479,3]
[329575224,1718451169430,-622.99217964,0.00025479,3]
[329575225,1718451169463,-500.0,0.00025479,3]
[329575226,1718451169477,-2483.59,0.00025479,3]
[329575227,1718451169497,-500.0,0.00025479,3]
[329575228,1718451169513,-500.0,0.00025479,3]
[329575229,1718451169558,-628.76,0.00025479,3]
[329575230,1718451169579,-500.0,0.00025479,3]
[329575231,1718451169598,-500.0,0.00025479,3]
[329575232,1718451169617,-500.0,0.00025479,3]
[329575233,1718451169672,-500.0,0.00025479,3]
[329575234,1718451169686,-2312.07,0.00025479,3]
[329575235,1718451169698,-500.0,0.00025479,3]
[329575236,1718451169710,-582.73,0.00025479,3]
[329575237,1718451169721,-1019.86,0.00025479,3]
[329575238,1718451169750,-505.7,0.00025479,3]
[329575239,1718451169762,-512.53,0.00025479,3]
[329575240,1718451169773,-887.95,0.00025479,3]
[329575241,1718451169784,-526.05,0.00025479,3]
[329575242,1718451169805,-500.0,0.00025479,3]
[329575243,1718451169822,-500.0,0.00025479,3]
[329575244,1718451169849,-738.8,0.00025479,3]
[329575245,1718451169874,-500.0,0.00025479,3]
[329575246,1718451169898,-500.0,0.00025479,3]
[329575247,1718451169912,-1715.51,0.00025479,3]
[329575248,1718451169932,-500.0,0.00025479,3]
[329575249,1718451169953,-740.24,0.00025479,3]
[329575250,1718451169975,-960.17,0.00025479,3]
[329575251,1718451170004,-500.0,0.00025479,3]
[329575252,1718451170029,-653.19,0.00025479,3]
[329575253,1718451170044,-582.42,0.00025479,3]
[329575254,1718451170063,-500.0,0.00025479,3]
[329575255,1718451170104,-500.0,0.00025479,3]
[329575256,1718451170115,-549.84280926,0.00025479,3]
[329575257,1718451170170,-638.94,0.00025479,3]
[329575258,1718451170186,-500.0,0.00025479,3]
[329575259,1718451170198,-1207.64,0.00025479,3]
[329575260,1718451170217,-700.018143,0.00025493,2]
[329575261,1718451170229,-1194.530331,0.00025493,2]
[329575262,1718451170245,-507.903001,0.00025493,2]
[329575263,1718451170256,-1018.245546,0.00025493,2]
[329575264,1718451170269,-761.8545,0.00025493,2]
[329575265,1718451170283,-2188.19778,0.00025493,2]
[329575266,1718451170295,-211.129873,0.00025493,2]
[329575267,1718451170310,-459.916763,0.00025493,2]
[329575268,1718451170326,-9857.123391,0.00025493,2]
[329575269,1718451170352,-258.552755,0.00025493,2]
[329575270,1718451170376,-12257.023707,0.00025493,2]
[329575271,1718451170388,-5326.565123,0.00025493,2]
[329575272,1718451170402,-1444.2920702,0.00025494,2]
[329575273,1718451170417,-150.33279369,0.00025495,2]
[329575274,1718451170429,-160.17050623,0.00025498,2]
[329575275,1718451170447,-1144.0565368,0.00025503,2]
[329575276,1718451170458,-200.0,0.00025503,2]
[329575277,1718451170496,-200.0,0.00025503,2]
[329575278,1718451170509,-152.63377509,0.00025503,2]
[329575279,1718451170528,-150.0,0.00025516,2]
[329575280,1718451170541,-151.30551572,0.00025516,2]
[329575281,1718451170560,-150.33279369,0.00025517,2]
[329575282,1718451170580,-150.0,0.0002552,2]
[329575283,1718451170595,-166.66666666,0.00025545,2]
[329575284,1718451170608,-166.68931393,0.00025583,2]
[329575285,1718451170620,-150.33279369,0.00025594,2]
[329575286,1718451170644,-286.63919872,0.00025595,2]
[329575287,1718451170657,-716.09055291,0.0002561,2]
[329575288,1718451170670,-504.02087361,0.00025615,2]
[329575289,1718451170683,-150.0,0.00025617,2]
[329575290,1718451170724,-150.0,0.00025617,2]
[329575291,1718451170740,-151.30551572,0.00025637,2]
[329575292,1718451170773,-286.63919872,0.00025646,2]
[329575293,1718451170809,-504.02087361,0.00025646,2]
[329575294,1718451170826,-716.09055291,0.00025648,2]
[329575295,1718451170839,-153.25370383,0.0002565,2]
[329575296,1718451170868,-782.54731293,0.00025673,2]
[329575297,1718451170886,-241.79306886,0.00025678,2]
[329575298,1718451170898,-1399.70760311,0.00025703,2]
[329575299,1718451170914,-521.40748737,0.00025703,2]
[329575300,1718451170929,-172.29710868,0.00025707,2]
[329575301,1718451170968,-782.54731293,0.00025714,2]
[329575302,1718451170983,-241.79306886,0.00025722,2]
[329575303,1718451170994,-158.36551752,0.00025725,2]
[329575304,1718451171006,-150.0,0.00025727,2]
[329575305,1718451171018,-241.79306886,0.00025732,2]
[329575306,1718451171031,-156.25014261,0.00025732,2]
[329575307,1718451171042,-152.40462388,0.00025752,2]
[329575308,1718451171054,-500.0,0.00025753,3]
[329575309,1718451171083,-522.01,0.00025753,3]
[329575310,1718451171094,-500.0,0.00025753,3]
[329575311,1718451171108,-500.0,0.00025753,3]
[329575312,1718451171119,-500.0,0.00025753,3]
[329575313,1718451171138,-500.12,0.00025753,3]
[329575314,1718451171160,-500.0,0.00025753,3]
[329575315,1718451171172,-617.41,0.00025753,3]
[329575316,1718451171189,-500.0,0.00025753,3]
[329575317,1718451171211,-429.77991126,0.00025753,3]
[329575318,1718451171230,-500.0,0.00025753,3]
[329575319,1718451171251,-500.0,0.00025753,3]
[329575320,1718451171282,-500.0,0.00025753,3]
[329575321,1718451171299,-500.0,0.00025753,3]
[329575322,1718451171320,-500.0,0.00025753,3]
[329575323,1718451171340,-500.0,0.00025753,3]
[329575324,1718451171369,-500.0,0.00025753,3]
[329575325,1718451171381,-500.0,0.00025753,3]
[329575326,1718451171404,-593.7,0.00025753,3]
[329575327,1718451171420,-924.58,0.00025753,3]
[329575328,1718451171442,-723.95,0.00025753,3]
[329575329,1718451171454,-672.34,0.00025753,3]
[329575330,1718451171486,-500.0,0.00025753,3]
[329575331,1718451171499,-525.61,0.00025753,3]
[329575332,1718451171520,-500.0,0.00025753,3]
[329575333,1718451171536,-500.0,0.00025753,3]
[329575334,1718451171549,-500.0,0.00025753,3]
[329575335,1718451171561,-500.0,0.00025753,3]
[329575336,1718451171581,-665.35,0.00025753,3]
[329575337,1718451171598,-500.0,0.00025753,3]
[329575338,1718451171617,-500.0,0.00025753,3]
[329575339,1718451171629,-500.0,0.00025753,3]
[329575340,1718451171641,-573.27,0.00025753,3]
[329575341,1718451171652,-500.0,0.00025753,3]
[329575342,1718451171666,-500.0,0.00025753,3]
[329575343,1718451171690,-500.0,0.00025753,3]
[329575344,1718451171713,-535.22,0.00025753,3]
[329575345,1718451171732,-500.0,0.00025753,3]
[329575346,1718451171746,-653.69,0.00025753,3]
[329575347,1718451171762,-717.74,0.00025753,3]
[329575348,1718451171775,-500.0,0.00025753,3]
[329575349,1718451171788,-583.01,0.00025753,3]
[329575350,1718451171818,-697.17,0.00025753,3]
[329575351,1718451171830,-611.55,0.00025753,3]
[329575352,1718451171843,-500.0,0.00025753,3]
[329575353,1718451171869,-689.83,0.00025753,3]
[329575354,1718451171898,-641.7,0.00025753,3]
[329575355,1718451171911,-893.27,0.00025753,3]
[329575356,1718451171929,-538.02,0.00025753,3]
[329575357,1718451171957,-572.18,0.00025753,3]
[329575358,1718451172012,-561.19,0.00025753,3]
[329575359,1718451172031,-500.0,0.00025753,3]
[329575360,1718451172055,-500.0,0.00025753,3]
[329575361,1718451172072,-519.33,0.00025753,3]
[329575362,1718451172085,-500.0,0.00025753,3]
[329575363,1718451172104,-624.2,0.00025753,3]
[329575364,1718451172121,-579.75,0.00025753,3]
[329575365,1718451172157,-575.46,0.00025753,3]
[329575366,1718451172203,-500.0,0.00025753,3]
[329575367,1718451172217,-500.0,0.00025753,3]
[329575368,1718451172237,-500.0,0.00025753,3]
[329575369,1718451172263,-532.67,0.00025753,3]
[329575370,1718451172275,-500.0,0.00025753,3]
[329575371,1718451172289,-500.0,0.00025753,3]
[329575372,1718451172303,-173.61,0.00025753,3]
[329575373,1718451172320,-500.0,0.00025753,3]
[329575374,1718451172331,-687.46,0.00025753,3]
[329575375,1718451172345,-1092.86,0.00025753,3]
[329575376,1718451172360,-524.53,0.00025753,3]
[329575377,1718451172370,-500.0,0.00025753,3]
[329575378,1718451172382,-1502.19,0.00025753,3]
[329575379,1718451172400,-500.0,0.00025753,3]
[329575380,1718451172416,-500.0,0.00025753,3]
[329575381,1718451172442,-500.0,0.00025753,3]
[329575382,1718451172453,-500.0,0.00025753,3]
[329575383,1718451172466,-500.0,0.00025753,3]
[329575384,1718451172487,-500.0,0.00025753,3]
[329575385,1718451172501,-612.77,0.00025753,3]
[329575386,1718451172513,-500.0,0.00025753,3]
[329575387,1718451172529,-500.0,0.00025753,3]
[329575388,1718451172540,-500.0,0.00025753,3]
[329575389,1718451172552,-546.66,0.00025753,3]
[329575390,1718451172564,-500.0,0.00025753,3]
[329575391,1718451172581,-915.8,0.00025753,3]
[329575392,1718451172591,-500.0,0.00025753,3]
[329575393,1718451172603,-553.21,0.00025753,3]
[329575394,1718451172613,-500.0,0.00025753,3]
[329575395,1718451172624,-1033.63,0.00025753,3]
[329575396,1718451172637,-500.0,0.00025753,3]
[329575397,1718451172650,-2515.97,0.00025753,3]
[329575398,1718451172661,-605.24,0.00025753,3]
[329575399,1718451172676,-384.32,0.00025753,3]
[329575400,1718451172688,-306.83,0.00025753,3]
[329575401,1718451172701,-353.58,0.00025753,3]
[329575402,1718451172716,-500.0,0.00025753,3]
[329575403,1718451172727,-500.0,0.00025753,3]
[329575404,1718451172739,-500.0,0.00025753,3]
[329575405,1718451172751,-500.0,0.00025753,3]
[329575406,1718451172763,-1014.91,0.00025753,3]
[329575407,1718451172775,-517.68,0.00025753,3]
[329575408,1718451172793,-574.11,0.00025753,3]
[329575409,1718451172804,-500.0,0.00025753,3]
[329575410,1718451172815,-500.0,0.00025753,3]
[329575411,1718451172828,-500.0,0.00025753,3]
[329575412,1718451172842,-1028.74,0.00025753,3]
[329575413,1718451172854,-500.0,0.00025753,3]
[329575414,1718451172868,-500.0,0.00025753,3]
[329575415,1718451172897,-2483.59,0.00025753,3]
[329575416,1718451172926,-500.0,0.00025753,3]
[329575417,1718451172952,-500.0,0.00025753,3]
[329575418,1718451172965,-628.76,0.00025753,3]
[329575419,1718451172995,-500.0,0.00025753,3]
[329575420,1718451173012,-500.0,0.00025753,3]
[329575421,1718451173024,-272.82,0.00025753,3]
[329575422,1718451173040,-500.0,0.00025753,3]
[329575423,1718451173064,-2312.07,0.00025753,3]
[329575424,1718451173075,-500.0,0.00025753,3]
[329575425,1718451173093,-582.73,0.00025753,3]
[329575426,1718451173116,-1019.86,0.00025753,3]
[329575427,1718451173128,-505.7,0.00025753,3]
[329575428,1718451173145,-512.53,0.00025753,3]
[329575429,1718451173160,-887.95,0.00025753,3]
[329575430,1718451173175,-526.05,0.00025753,3]
[329575431,1718451173204,-500.0,0.00025753,3]
[329575432,1718451173247,-500.0,0.00025753,3]
[329575433,1718451173318,-738.8,0.00025753,3]
[329575434,1718451173333,-500.0,0.00025753,3]
[329575435,1718451173348,-500.0,0.00025753,3]
[329575436,1718451173380,-1715.51,0.00025753,3]
[329575437,1718451173404,-500.0,0.00025753,3]
[329575438,1718451173435,-740.24,0.00025753,3]
[329575439,1718451173451,-960.17,0.00025753,3]
[329575440,1718451173467,-500.0,0.00025753,3]
[329575441,1718451173488,-653.19,0.00025753,3]
[329575442,1718451173508,-582.42,0.00025753,3]
[329575443,1718451173529,-500.0,0.00025753,3]
[329575444,1718451173545,-500.0,0.00025753,3]
[329575445,1718451173568,-500.0,0.00025753,3]
[329575446,1718451173584,-638.94,0.00025753,3]
[329575447,1718451173598,-1207.64,0.00025753,3]
[329575448,1718451173623,-200.0,0.00025758,2]
[329575449,1718451173635,-200.0,0.00025758,2]
[329575450,1718451173649,-212.0,0.0002576,2]
[329575451,1718451173680,-217.0,0.0002578,2]
[329575452,1718451173700,-153.72328539,0.00025784,2]
[329575453,1718451173728,-286.63919872,0.00025791,2]
[329575454,1718451173748,-1060.1454252,0.00025794,2]
[329575455,1718451174179,-214.9383955,0.00021917,2]
[329575456,1718451174281,-375.38893534,0.00021917,2]
[329575457,1718451174528,-409.28413216,0.00021917,2]
[329575458,1718451174544,-90.71586784,0.00022191,3]
[329575459,1718451174654,-512.43413216,0.00022191,3]
[329575460,1718451174668,-999.611463,0.00022191,7]
[329575461,1718451174681,-603.15,0.00022465,3]
[329575462,1718451174693,-999.611463,0.00022465,7]
[329575463,1718451174708,-603.15,0.00022739,3]
[329575464,1718451174721,-1093.81,0.00025205,3]
[329575465,1718451174733,-157.05975808,0.00025205,3]
[329575466,1718451174758,-1500.0,0.00025318,2]
[329575467,1718451174771,-1093.81,0.00025479,3]
[329575468,1718451174784,-1093.81,0.00025753,3]
[329575469,1718451174797,-384.146645,0.00025794,2]
[329575470,1718451174813,-161.665926,0.000258,2]
[329575471,1718451174833,-186.87877,0.000258,2]
[329575472,1718451174845,-173.136935,0.000258,2]
[329575473,1718451174891,-186.703038,0.000258,2]
[329575474,1718451174959,-191.859764,0.000258,2]
[329575475,1718451175016,-176.826942,0.000258,2]
[329575476,1718451175036,-181.681102,0.000258,2]
[329575477,1718451175052,-181.256457,0.000258,2]
[329575478,1718451175115,-181.843116,0.000258,2]
[329575479,1718451175173,-172.114939,0.000258,2]
[329575480,1718451175190,-700.018143,0.000258,2]
[329575481,1718451175204,-1194.530331,0.000258,2]
[329575482,1718451175229,-507.903001,0.000258,2]
[329575483,1718451175242,-1018.245546,0.000258,2]
[329575484,1718451175253,-761.8545,0.000258,2]
[329575485,1718451175265,-2188.19778,0.000258,2]
[329575486,1718451175277,-211.129873,0.000258,2]
[329575487,1718451175292,-459.916763,0.000258,2]
[329575488,1718451175320,-9857.123391,0.000258,2]
[329575489,1718451175333,-258.552755,0.000258,2]
[329575490,1718451175346,-12257.023707,0.000258,2]
[329575491,1718451175366,-5326.565123,0.000258,2]
[329575492,1718451175390,-152.40462388,0.00025802,2]
[329575493,1718451175406,-154.60176383,0.00025804,2]
[329575494,1718451175447,-169.7793574,0.00025814,2]
[329575495,1718451175472,-151.0,0.00025839,2]
[329575496,1718451175492,-152.63377509,0.00025839,2]
[329575497,1718451175504,-515.52255554,0.00025842,2]
[329575498,1718451175520,-160.92175431,0.00025843,2]
[329575499,1718451175538,-151.30551572,0.00025858,2]
[329575500,1718451175554,-1009.64,0.0002586,2]
[329575501,1718451175606,-166.66666667,0.00025869,2]
[329575502,1718451175618,-1444.2920702,0.0002588,2]
[329575503,1718451175637,-1444.2920702,0.00025886,2]
[329575504,1718451175682,-782.54731293,0.00025888,2]
[329575505,1718451175716,-152.63377509,0.0002589,2]
[329575506,1718451175737,-241.53,0.0002589,2]
[329575507,1718451175768,-156.25014261,0.00025895,2]
[329575508,1718451175783,-159.10664345,0.00025907,2]
[329575509,1718451175797,-1444.2920702,0.00025911,2]
[329575510,1718451175812,-1444.2920702,0.00025914,2]
[329575511,1718451175839,-150.33279369,0.00025941,2]
[329575512,1718451175858,-241.79306886,0.00025948,2]
[329575513,1718451175888,-152.63377509,0.00025951,2]
[329575514,1718451175917,-417.85,0.00025957,2]
[329575515,1718451175949,-151.0,0.00025963,2]
[329575516,1718451175969,-151.30551572,0.00025965,2]
[329575517,1718451175991,-153.72328539,0.00025968,2]
[329575518,1718451176014,-150.0,0.00025969,2]
[329575519,1718451176029,-155.48053764,0.00025972,2]
[329575520,1718451176056,-716.09055291,0.00025986,2]
[329575521,1718451176099,-154.60176383,0.00025994,2]
[329575522,1718451176117,-13928.41755857,0.00026,5]
[329575523,1718451176137,-4268.36583117,0.00026,2]
[329575524,1718451176152,-1016.77203288,0.00026,2]
[329575525,1718451176174,-630.78,0.00026,2]
[329575526,1718451176192,-658.05683273,0.00026,2]
[329575527,1718451176929,-616.0,0.000172,2]
[329575528,1718451177027,-160.4286556,0.0002,2]
[329575529,1718451177048,-616.0,0.000202,2]
[329575530,1718451177061,-151.0,0.000207,2]
[329575531,1718451177076,-999.611463,0.000207,2]
[329575532,1718451177096,-151.0,0.00021917,2]
[329575533,1718451177115,-127.9425364,0.00021917,2]
[329575534,1718451177207,-84.6014036,0.00021917,2]
[329575535,1718451177222,-151.0,0.00021917,2]
[329575536,1718451177235,-151.0,0.00021917,2]
[329575537,1718451177266,-999.611463,0.00021917,2]
[329575538,1718451177279,-999.611463,0.00021917,2]
[329575539,1718451177300,-595.9078324,0.00022739,7]
[329575540,1718451177508,-1652.0,0.000172,2]
[329575541,1718451177520,-772.5200943,0.00021917,2]
[329575542,1718451177620,-500.0,0.000202,2]
[329575543,1718451177653,-380.43528124,0.000202,2]
[329575544,1718451177668,-505.14,0.000202,2]
[329575545,1718451177682,-266.42471876,0.000202,2]
[329575546,1718451177703,-25.63928124,0.00021917,2]
[329575547,1718451177844,-201.45208746,0.00021917,2]
[329575548,1718451177867,-287.36970474,0.00021917,2]
[329575549,1718451177926,-179.44051199,0.00015151,2]
[329575550,1718451177949,-212.63029526,0.00021917,2]
[329575551,1718451177961,-410.57177136,0.00022191,3]
[329575552,1718451178872,-790.98150149,0.00015151,2]
[329575553,1718451178884,-483.58335323,0.00019178,2]
[329575554,1718451178906,-1105.84581199,0.00019178,2]
[329575555,1718451178918,-89.42822864,0.00022191,3]
[329575556,1718451178933,-999.611463,0.00022191,7]
[329575557,1718451178945,-500.0,0.00022465,3]
[329575558,1718451178959,-999.611463,0.00022465,7]
[329575559,1718451178973,-403.7036306,0.00022739,7]
[329575560,1718451179018,-500.0,0.00022739,3]
[329575561,1718451179031,-999.611463,0.00022739,7]
[329575562,1718451179045,-615.32041173,0.00023013,7]